[Event "S. A. Group BAN-chT 2018"]
[Site "Dhaka"]
[Date "2018.12.07"]
[Round "2"]
[White "Abu Sufian, Shakil"]
[Black "Hamid, Rani"]
[Result "1-0"]
[ECO "B43"]
[WhiteElo "2230"]
[BlackElo "1932"]
[Annotator "NA"]
[PlyCount "95"]
[EventDate "2018.12.07"]
[EventType "team-tourn"]
[EventCountry "BAN"]
[SourceTitle "playchess.com"]
[Source "ChessBase"]
[SourceQuality "1"]
[TimeControl "5400+30"]

1. e4 {[%emt 1:30:30]} c5 {[%emt 1:30:30]} 2. Nf3 {[%emt 0:00:30]} e6 {[%emt 0:00:30]} 3. d4 {[%emt 0:00:30]} cxd4 {[%emt 0:00:30]} 4. Nxd4 {[%emt 0:00:30]} a6 {[%emt 0:00:30]} 5. Nc3 {[%emt 0:00:30]} Qc7 {[%emt 0:00:30]} 6. Be2 {[%emt 0:00:30]} Nf6 {[%emt 0:00:30]} 7. O-O {[%emt 0:00:30]} Be7 {[%emt 0:00:30]} 8. Be3 {[%emt 0:00:30]} b5 {[%emt 0:00:30]} 9. Bf3 {[%emt 0:00:30]} Nc6 {[%emt 0:00:30]} 10. e5 {[%emt 0:00:30]} Ng8 {[%emt 0:00:30]} 11. a4 {[%emt 0:00:30]} bxa4 {[%emt 0:00:30]} 12. Nxc6 {[%emt 0:00:30]} dxc6 {[%emt 0:00:30]} 13. Nxa4 {[%emt 0:00:30]} Rb8 {[%emt 0:00:30]} 14. Re1 {[%emt 0:00:30]} c5 {[%emt 0:00:30]} 15. Qd2 {[%emt 0:00:30]} h5 {[%emt 0:00:30]} 16. b3 {[%emt 0:00:30]} h4 {[%emt 0:00:30]} 17. h3 {[%emt 0:00:30]} Nh6 {[%emt 0:00:30]} 18. Qc3 {[%emt 0:00:30]} Nf5 {[%emt 0:00:30]} 19. Bxc5 {[%emt 0:00:30]} O-O {[%emt 0:00:30]} 20. Bxe7 {[%emt 0:00:30]} Qxc3 {[%emt 0:00:30]} 21. Nxc3 {[%emt 0:00:30]} Nxe7 {[%emt 0:00:30]} 22. Be4 {[%emt 0:00:30]} Bb7 {[%emt 0:00:30]} 23. Bd3 {[%emt 0:00:30]} Nc6 {[%emt 0:00:30]} 24. Ra4 {[%emt 0:00:30]} Rfd8 {[%emt 0:00:30]} 25. Rxh4 {[%emt 0:00:30]} Nd4 {[%emt 0:00:30]} 26. Ne2 {[%emt 0:00:30]} Nxe2+ {[%emt 0:00:30]} 27. Rxe2 {[%emt 0:00:30]} g6 {[%emt 0:00:30]} 28. Ra4 {[%emt 0:00:30]} Ra8 {[%emt 0:00:30]} 29. f4 {[%emt 0:00:30]} a5 {[%emt 0:00:30]} 30. Be4 {[%emt 0:00:30]} Bxe4 {[%emt 0:00:30]} 31. Raxe4 {[%emt 0:00:30]} Rac8 {[%emt 0:00:30]} 32. Ra4 {[%emt 0:00:30]} Rc5 {[%emt 0:00:30]} 33. Kf2 {[%emt 0:00:30]} Rdc8 {[%emt 0:00:30]} 34. c4 {[%emt 0:00:30]} Rd8 {[%emt 0:00:30]} 35. h4 {[%emt 0:00:30]} Rd1 {[%emt 0:00:30]} 36. Re3 {[%emt 0:00:30]} Rh1 {[%emt 0:00:30]} 37. g3 {[%emt 0:00:30]} Rb1 {[%emt 0:00:30]} 38. Rd3 {[%emt 0:00:30]} Kg7 {[%emt 0:00:30]} 39. Ke3 {[%emt 0:00:30]} Kh6 {[%emt 0:00:30]} 40. Kd4 {[%emt 0:00:30]} Rc8 {[%emt 0:00:30]} 41. Rxa5 {[%emt 0:00:30]} Rd8+ {[%emt 0:00:30]} 42. Ke3 {[%emt 0:00:30]} Rxd3+ {[%emt 0:00:30]} 43. Kxd3 {[%emt 0:00:30]} Rxb3+ {[%emt 0:00:30]} 44. Kd4 {[%emt 0:00:30]} Rxg3 {[%emt 0:00:30]} 45. c5 {[%emt 0:00:30]} Rf3 {[%emt 0:00:30]} 46. c6 {[%emt 0:00:30]} Rxf4+ {[%emt 0:00:30]} 47. Kc5 {[%emt 0:00:30]} Rf1 {[%emt 0:00:30]} 48. c7 {[%emt 0:00:30]} 1-0

[Event "S. A. Group BAN-chT 2018"]
[Site "Dhaka"]
[Date "2018.12.07"]
[Round "2"]
[White "Anata, Choudhury"]
[Black "Mehdi Hasan Parag"]
[Result "0-1"]
[ECO "B19"]
[WhiteElo "2169"]
[BlackElo "2218"]
[Annotator "NA"]
[PlyCount "90"]
[EventDate "2018.12.07"]
[EventType "team-tourn"]
[EventCountry "BAN"]
[SourceTitle "playchess.com"]
[Source "ChessBase"]
[SourceQuality "1"]
[TimeControl "5400+30"]

1. e4 {[%emt 0:00:00]} c6 {[%emt 0:00:00]} 2. d4 {[%emt 0:00:00]} d5 {[%emt 0:00:00]} 3. Nd2 {[%emt 0:00:00]} dxe4 {[%emt 0:00:06]} 4. Nxe4 {[%emt 0:00:03]} Bf5 {[%emt 0:00:07]} 5. Ng3 {[%emt 0:00:09]} Bg6 {[%emt 0:00:08]} 6. h4 {[%emt 0:00:31]} h6 {[%emt 0:00:13]} 7. Nf3 {[%emt 0:00:11]} e6 {[%emt 0:00:17]} 8. Ne5 {[%emt 0:00:23]} Bh7 {[%emt 0:00:09]} 9. Bd3 {[%emt 0:00:15]} Bxd3 {[%emt 0:00:25]} 10. Qxd3 {[%emt 0:00:14]} Nd7 {[%emt 0:00:14]} 11. Qe2 {[%emt 0:00:44]} Ngf6 {[%emt 0:04:27]} 12. Bd2 {[%emt 0:00:19]} a5 {[%emt 0:05:30]} 13. O-O-O {[%emt 0:01:49]} Be7 {[%emt 0:01:43]} 14. f4 {[%emt 0:01:07]} O-O {[%emt 0:07:31]} 15. Nf1 {[%emt 0:01:37]} h5 {[%emt 0:04:57]} 16. Ne3 {[%emt 0:10:35]} Ne4 {[%emt 0:05:40]} 17. Be1 {[%emt 0:00:50]} Ndf6 {[%emt 0:01:50]} 18. g4 {[%emt 0:02:59]} hxg4 {[%emt 0:00:29]} 19. f5 {[%emt 0:05:20]} Qc8 {[%emt 0:14:35]} 20. Rf1 {[%emt 0:04:41]} a4 {[%emt 0:03:55]} 21. h5 {[%emt 0:06:34]} a3 {[%emt 0:03:46]} 22. b3 {[%emt 0:01:56]} Nd5 {[%emt 0:04:14]} 23. fxe6 {[%emt 0:18:36]} Qxe6 {[%emt 0:01:58]} 24. Nxd5 {[%emt 0:06:25]} cxd5 {[%emt 0:02:28]} 25. Qxg4 {[%emt 0:00:31]} Qxg4 {[%emt 0:01:10]} 26. Nxg4 {[%emt 0:00:18]} f5 {[%emt 0:01:35]} 27. Ne5 {[%emt 0:01:48]} Rac8 {[%emt 0:07:30]} 28. Rd3 {[%emt 0:04:34]} Rc7 {[%emt 0:12:20]} 29. Ba5 {[%emt 0:05:34]} Rcc8 {[%emt 0:00:25]} 30. Kd1 {[%emt 0:02:03]} b6 {[%emt 0:01:15]} 31. Be1 {[%emt 0:00:48]} Bg5 {[%emt 0:03:59]} 32. Nd7 {[%emt 0:03:40]} Rfd8 {[%emt 0:00:00]} 33. Nxb6 {[%emt 0:00:41]} Rc6 {[%emt 0:00:14]} 34. Na4 {[%emt 0:00:26]} Rdc8 {[%emt 0:00:34]} 35. c3 {[%emt 0:00:39]} f4 {[%emt 0:00:46]} 36. Rff3 {[%emt 0:05:15]} Kh7 {[%emt 0:00:54]} 37. b4 {[%emt 0:00:38]} Rh6 {[%emt 0:00:24]} 38. Nc5 {[%emt 0:03:19]} Rxh5 {[%emt 0:00:53]} 39. Ne6 {[%emt 0:00:35]} Rh1 {[%emt 0:02:51]} 40. Nxg5+ {[%emt 0:01:40]} Nxg5 {[%emt 0:00:02]} 41. Rxf4 {[%emt 0:00:21]} Kg6 {[%emt 0:03:07]} 42. Re3 {[%emt 0:02:59]} Ne4 {[%emt 0:01:23]} 43. Rff3 {[%emt 0:02:24]} Rg1 {[%emt 0:01:11]} 44. Re2 {[%emt 0:05:23]} Rxc3 {[%emt 0:00:53]} 45. Rxc3 {[%emt 0:00:33]} Nxc3+ {[%emt 0:00:04] Re3 [%clk 0:00:50]} 0-1

[Event "S. A. Group BAN-chT 2018"]
[Site "Dhaka"]
[Date "2018.12.07"]
[Round "2"]
[White "Hossain, Showkat Pollab"]
[Black "Aronyak Ghosh"]
[Result "0-1"]
[ECO "B02"]
[WhiteElo "2131"]
[BlackElo "2343"]
[Annotator "ChessBase"]
[PlyCount "110"]
[EventDate "2018.12.07"]
[EventType "team-tourn"]
[EventCountry "BAN"]
[SourceTitle "playchess.com"]
[Source "ChessBase"]
[SourceQuality "1"]
[TimeControl "5400+30"]

1. e4 {[%emt 0:03:11]} Nf6 {[%emt 0:00:00]} 2. Qe2 {[%emt 0:01:15]} d6 {[%emt 0:01:43]} 3. h3 {[%emt 0:01:26]} c5 {[%emt 0:01:39]} 4. b3 {[%emt 0:02:18]} g6 {[%emt 0:01:30]} 5. Bb2 {[%emt 0:00:21]} Bg7 {[%emt 0:00:02]} 6. g4 {[%emt 0:00:11]} e5 {[%emt 0:01:10]} 7. Nc3 {[%emt 0:03:22]} Nc6 {[%emt 0:00:07]} 8. Nf3 {[%emt 0:15:18]} O-O {[%emt 0:04:29]} 9. Qe3 {[%emt 0:07:17]} Nd4 {[%emt 0:00:54]} 10. Bd3 {[%emt 0:06:20]} Bxg4 {[%emt 0:01:58]} 11. Nxe5 {[%emt 0:00:23]} Bh5 {[%emt 0:00:52]} 12. Ng4 {[%emt 0:06:42]} Nxg4 {[%emt 0:00:48]} 13. hxg4 {[%emt 0:00:02]} Bxg4 {[%emt 0:00:07]} 14. Kf1 {[%emt 0:06:18]} h5 {[%emt 0:02:41]} 15. Rc1 {[%emt 0:17:26]} Nf3 {[%emt 0:10:49]} 16. Be2 {[%emt 0:03:32]} Bd4 {[%emt 0:01:30]} 17. Qd3 {[%emt 0:00:19]} Qf6 {[%emt 0:02:36]} 18. Bxf3 {[%emt 0:09:31]} Qxf3 {[%emt 0:01:55]} 19. Qxf3 {[%emt 0:03:54]} Bxf3 {[%emt 0:00:02]} 20. Rh3 {[%emt 0:00:22]} Bxe4 {[%emt 0:02:05]} 21. Nxe4 {[%emt 0:01:12]} Bxb2 {[%emt 0:00:02]} 22. Re1 {[%emt 0:00:41]} Be5 {[%emt 0:05:02]} 23. Nxc5 {[%emt 0:04:15]} Rfc8 {[%emt 0:00:07]} 24. Nd3 {[%emt 0:02:33]} Rxc2 {[%emt 0:00:46]} 25. Nxe5 {[%emt 0:00:11]} dxe5 {[%emt 0:00:07]} 26. Rd3 {[%emt 0:00:22]} Re8 {[%emt 0:01:02]} 27. a4 {[%emt 0:01:33]} Rc7 {[%emt 0:00:27]} 28. Rd5 {[%emt 0:00:53]} Rce7 {[%emt 0:00:20]} 29. Rc1 {[%emt 0:00:22]} f6 {[%emt 0:02:03]} 30. Ke2 {[%emt 0:00:06]} Kf7 {[%emt 0:00:06]} 31. a5 {[%emt 0:01:03]} Ke6 {[%emt 0:00:41]} 32. Rdc5 {[%emt 0:00:12]} Rd8 {[%emt 0:00:47]} 33. b4 {[%emt 0:01:42]} Rd4 {[%emt 0:00:50]} 34. b5 {[%emt 0:01:43]} Red7 {[%emt 0:00:40]} 35. R1c2 {[%emt 0:00:32]} R4d5 {[%emt 0:01:48]} 36. a6 {[%emt 0:00:13]} Rxc5 {[%emt 0:00:14]} 37. Rxc5 {[%emt 0:00:11]} bxa6 {[%emt 0:00:08]} 38. bxa6 {[%emt 0:00:35]} Rd6 {[%emt 0:00:02]} 39. Ra5 {[%emt 0:00:27]} Kf5 {[%emt 0:00:25]} 40. Ra1 {[%emt 0:00:28]} g5 {[%emt 0:00:08]} 41. f3 {[%emt 0:00:26]} g4 {[%emt 0:00:33]} 42. fxg4+ {[%emt 0:00:40]} hxg4 {[%emt 0:00:02]} 43. Ke3 {[%emt 0:00:18]} Ke6 {[%emt 0:02:12]} 44. d3 {[%emt 0:00:23]} f5 {[%emt 0:00:40]} 45. Rh1 {[%emt 0:00:57]} f4+ {[%emt 0:00:35]} 46. Ke2 {[%emt 0:00:11]} Kd5 {[%emt 0:00:40]} 47. Ra1 {[%emt 0:00:32]} g3 {[%emt 0:01:14]} 48. Kf3 {[%emt 0:01:04]} Ke6 {[%emt 0:00:13]} 49. Ra3 {[%emt 0:00:22]} Kf5 {[%emt 0:00:08]} 50. Ke2 {[%emt 0:00:32]} Kg4 {[%emt 0:00:53]} 51. Ra5 {[%emt 0:00:17]} f3+ {[%emt 0:00:26]} 52. Ke3 {[%emt 0:00:07]} f2 {[%emt 0:00:22]} 53. Ra4+ {[%emt 0:01:24]} Kh3 {[%emt 0:00:10]} 54. Ra1 {[%emt 0:00:29]} Rf6 {[%emt 0:00:40]} 55. Ke2 {[%emt 0:00:35]} g2 {[%emt 0:00:19]} 0-1

[Event "S. A. Group BAN-chT 2018"]
[Site "Dhaka"]
[Date "2018.12.07"]
[Round "2"]
[White "S M Sharon"]
[Black "Hasan Md, Emam"]
[Result "0-1"]
[ECO "C41"]
[WhiteElo "2123"]
[BlackElo "2076"]
[Annotator "NA"]
[PlyCount "130"]
[EventDate "2018.12.07"]
[EventType "team-tourn"]
[EventCountry "BAN"]
[SourceTitle "playchess.com"]
[Source "ChessBase"]
[SourceQuality "1"]
[TimeControl "5400+30"]

1. e4 {[%emt 0:02:13]} e5 {[%emt 0:06:01]} 2. Nf3 {[%emt 0:00:50]} d6 {[%emt 0:00:02]} 3. Bc4 {[%emt 0:01:56]} c6 {[%emt 0:00:05]} 4. d4 {[%emt 0:03:28]} Nd7 {[%emt 0:00:02]} 5. dxe5 {[%emt 0:05:30]} dxe5 {[%emt 0:00:02]} 6. Ng5 {[%emt 0:05:44]} Nh6 {[%emt 0:00:09]} 7. O-O {[%emt 0:05:26]} Qe7 {[%emt 0:02:16]} 8. Kh1 {[%emt 0:04:54]} Nb6 {[%emt 0:01:23]} 9. Bb3 {[%emt 0:00:08]} f6 {[%emt 0:00:12]} 10. Nf3 {[%emt 0:01:07]} Nf7 {[%emt 0:00:05]} 11. Be3 {[%emt 0:01:20]} Bg4 {[%emt 0:09:40]} 12. Nbd2 {[%emt 0:01:05]} O-O-O {[%emt 0:01:07]} 13. Bxf7 {[%emt 0:03:30]} Bxf3 {[%emt 0:01:40]} 14. Qxf3 {[%emt 0:00:04]} Qxf7 {[%emt 1:14:16]} 15. Qe2 {[%emt 0:06:00]} g5 {[%emt 0:00:00]} 16. Rfd1 {[%emt 0:02:54]} Be7 {[%emt 0:00:00]} 17. a4 {[%emt 0:05:21]} Kc7 {[%emt 0:00:00]} 18. a5 {[%emt 0:07:31]} Nc8 {[%emt 0:00:00]} 19. Rdb1 {[%emt 0:01:01]} Qf8 {[%emt 0:00:00]} 20. Nc4 {[%emt 0:07:35]} Bc5 {[%emt 0:00:00]} 21. c3 {[%emt 0:02:18]} Bxe3 {[%emt 0:00:00]} 22. Qxe3 {[%emt 0:02:08]} Qf7 {[%emt 0:00:00]} 23. Qc5 {[%emt 0:01:42]} Qe7 {[%emt 0:00:00]} 24. Qxe7+ {[%emt 0:04:22]} Nxe7 {[%emt 0:00:00]} 25. Rd1 {[%emt 0:00:22]} Nc8 {[%emt 0:00:00]} 26. g3 {[%emt 0:02:44]} Nd6 {[%emt 0:00:00]} 27. Nxd6 {[%emt 0:00:51]} Rxd6 {[%emt 0:00:00]} 28. Rxd6 {[%emt 0:00:04]} Kxd6 {[%emt 0:00:00]} 29. Rd1+ {[%emt 0:00:58]} Ke6 {[%emt 0:00:00]} 30. Kg2 {[%emt 0:02:14]} g4 {[%emt 0:00:00]} 31. h3 {[%emt 0:01:02]} h5 {[%emt 0:00:00]} 32. h4 {[%emt 0:00:13]} b6 {[%emt 0:00:00]} 33. axb6 {[%emt 0:00:43]} axb6 {[%emt 0:00:00]} 34. Ra1 {[%emt 0:02:27]} Kd6 {[%emt 0:00:00]} 35. Ra7 {[%emt 0:00:53]} Kc5 {[%emt 0:00:00]} 36. Rf7 {[%emt 0:00:43]} Rh6 {[%emt 0:00:00]} 37. Rc7 {[%emt 0:04:38]} Kb5 {[%emt 0:00:00]} 38. Kf1 {[%emt 0:01:17]} c5 {[%emt 0:00:00]} 39. Ke2 {[%emt 0:00:42]} f5 {[%emt 0:00:00]} 40. exf5 {[%emt 0:00:18]} Rf6 {[%emt 0:00:00]} 41. Rg7 {[%emt 0:00:16]} Rxf5 {[%emt 0:00:00]} 42. Rg5 {[%emt 0:00:08]} Rf6 {[%emt 0:00:00]} 43. Rxe5 {[%emt 0:02:23]} Kc4 {[%emt 0:00:00]} 44. b4 {[%emt 0:00:48]} cxb4 {[%emt 0:00:00]} 45. cxb4 {[%emt 0:00:01]} Kxb4 {[%emt 0:00:00]} 46. Rxh5 {[%emt 0:00:02]} Kc4 {[%emt 0:00:00]} 47. Rg5 {[%emt 0:00:08]} b5 {[%emt 0:00:00]} 48. Rxg4+ {[%emt 0:00:02]} Kc3 {[%emt 0:00:00]} 49. Rg8 {[%emt 0:00:22]} b4 {[%emt 0:00:00]} 50. Rb8 {[%emt 0:00:27]} b3 {[%emt 0:00:00]} 51. f4 {[%emt 0:00:12]} b2 {[%emt 0:00:00]} 52. Ke3 {[%emt 0:03:44]} Re6+ {[%emt 0:00:00]} 53. Kf2 {[%emt 0:00:39]} Re8 {[%emt 0:00:00]} 54. Rb7 {[%emt 0:01:23]} Re7 {[%emt 0:00:00]} 55. Rb6 {[%emt 0:00:28]} Re6 {[%emt 0:00:00]} 56. Rb5 {[%emt 0:00:18]} Re4 {[%emt 0:00:00]} 57. Rxb2 {[%emt 0:01:50]} Kxb2 {[%emt 0:00:00]} 58. Kf3 {[%emt 0:00:13]} Re8 {[%emt 0:00:00]} 59. h5 {[%emt 0:00:13]} Kc3 {[%emt 0:00:00]} 60. g4 {[%emt 0:00:39]} Kd4 {[%emt 0:00:00]} 61. g5 {[%emt 0:02:05]} Re3+ {[%emt 0:00:00]} 62. Kg4 {[%emt 0:00:55]} Ke4 {[%emt 0:00:00]} 63. f5 {[%emt 0:02:18]} Re1 {[%emt 0:00:43]} 64. f6 {[%emt 0:00:24]} Rg1+ {[%emt 0:00:29]} 65. Kh4 {[%emt 0:02:56]} Ke5 {[%emt 0:24:18]} 0-1

[Event "S. A. Group BAN-chT 2018"]
[Site "Dhaka"]
[Date "2018.12.07"]
[Round "2"]
[White "Khan, Jewel"]
[Black "Mohammad Minhaz Uddin"]
[Result "0-1"]
[ECO "D04"]
[WhiteElo "1957"]
[BlackElo "2290"]
[Annotator "ChessBase"]
[PlyCount "152"]
[EventDate "2018.12.07"]
[EventType "team-tourn"]
[EventCountry "BAN"]
[SourceTitle "playchess.com"]
[Source "ChessBase"]
[SourceQuality "1"]
[TimeControl "5400+30"]

1. d4 {[%emt 0:14:10]} Nf6 {[%emt 0:00:00]} 2. e3 {[%emt 0:00:47]} d5 {[%emt 0:00:19]} 3. Nf3 {[%emt 0:00:27]} Bg4 {[%emt 0:00:43]} 4. Bd3 {[%emt 0:01:18]} e6 {[%emt 0:00:14]} 5. O-O {[%emt 0:00:14]} c5 {[%emt 0:00:09]} 6. c4 {[%emt 0:01:09]} Nc6 {[%emt 0:03:00]} 7. cxd5 {[%emt 0:02:35]} exd5 {[%emt 0:00:03]} 8. dxc5 {[%emt 0:01:19]} Bxc5 {[%emt 0:00:03]} 9. a3 {[%emt 0:00:34]} a6 {[%emt 0:03:26]} 10. b4 {[%emt 0:00:17]} Ba7 {[%emt 0:00:04]} 11. Bb2 {[%emt 0:00:23]} O-O {[%emt 0:00:05]} 12. Nbd2 {[%emt 0:00:42]} Re8 {[%emt 0:02:17]} 13. Rc1 {[%emt 0:05:27]} Ne4 {[%emt 0:02:26]} 14. Nb3 {[%emt 0:03:49]} Qe7 {[%emt 0:03:12]} 15. Be2 {[%emt 0:01:53]} Rad8 {[%emt 0:08:04]} 16. Nbd4 {[%emt 0:01:06]} Rd6 {[%emt 0:02:26]} 17. Nxc6 {[%emt 0:03:43]} bxc6 {[%emt 0:00:06]} 18. Nd4 {[%emt 0:01:40]} Bd7 {[%emt 0:00:42]} 19. Bg4 {[%emt 0:05:34]} Bxg4 {[%emt 0:03:40]} 20. Qxg4 {[%emt 0:00:14]} Bxd4 {[%emt 0:02:07]} 21. Bxd4 {[%emt 0:01:14]} Rg6 {[%emt 0:00:06]} 22. Qe2 {[%emt 0:05:01]} f5 {[%emt 0:08:00]} 23. f3 {[%emt 0:01:51]} Ng5 {[%emt 0:00:03]} 24. f4 {[%emt 0:09:51]} Ne4 {[%emt 0:00:20]} 25. Rf3 {[%emt 0:01:17]} Ra8 {[%emt 0:03:31]} 26. Rh3 {[%emt 0:04:01]} h6 {[%emt 0:02:01]} 27. Bc5 {[%emt 0:07:30]} Qd7 {[%emt 0:00:57]} 28. Qb2 {[%emt 0:03:45]} Kh7 {[%emt 0:00:49]} 29. Rf3 {[%emt 0:00:33]} a5 {[%emt 0:01:30]} 30. Rff1 {[%emt 0:00:29]} axb4 {[%emt 0:02:30]} 31. axb4 {[%emt 0:00:14]} Qb7 {[%emt 0:00:11]} 32. Rc2 {[%emt 0:03:29]} Re6 {[%emt 0:03:00]} 33. Qd4 {[%emt 0:03:14]} Ra4 {[%emt 0:02:57]} 34. Rb1 {[%emt 0:02:38]} Qa8 {[%emt 0:06:51]} 35. h3 {[%emt 0:06:19]} Rg6 {[%emt 0:03:55]} 36. Kh2 {[%emt 0:01:07]} Ra2 {[%emt 0:01:35]} 37. Rxa2 {[%emt 0:02:16]} Qxa2 {[%emt 0:00:03]} 38. Qb2 {[%emt 0:00:14]} Qc4 {[%emt 0:00:45]} 39. Rc1 {[%emt 0:00:39]} Qb5 {[%emt 0:02:25]} 40. Bd4 {[%emt 0:00:19]} Qb8 {[%emt 0:01:42]} 41. Rg1 {[%emt 0:01:43]} Rg3 {[%emt 0:01:03]} 42. Rf1 {[%emt 0:01:01]} Qd8 {[%emt 0:00:54]} 43. Qe2 {[%emt 0:00:45]} Qe8 {[%emt 0:03:44]} 44. Rf3 {[%emt 0:01:14]} Qg6 {[%emt 0:00:07]} 45. Rxg3 {[%emt 0:00:42]} Qxg3+ {[%emt 0:00:04]} 46. Kg1 {[%emt 0:00:16]} Kg6 {[%emt 0:03:34]} 47. Qf1 {[%emt 0:01:08]} h5 {[%emt 0:05:11]} 48. Qe2 {[%emt 0:00:30]} h4 {[%emt 0:00:24]} 49. Qf1 {[%emt 0:00:17]} Kh6 {[%emt 0:00:18]} 50. Qe2 {[%emt 0:00:54]} Kg6 {[%emt 0:05:25]} 51. Qf1 {[%emt 0:00:15]} Kh7 {[%emt 0:00:02]} 52. Qe2 {[%emt 0:00:20]} Qg6 {[%emt 0:00:17]} 53. Kh2 {[%emt 0:00:35]} Kh6 {[%emt 0:04:48]} 54. Qe1 {[%emt 0:00:40]} Qg3+ {[%emt 0:00:16]} 55. Qxg3 {[%emt 0:00:13]} hxg3+ {[%emt 0:01:09]} 56. Kg1 {[%emt 0:00:25]} Kg6 {[%emt 0:00:21]} 57. Kf1 {[%emt 0:00:26]} Kf7 {[%emt 0:00:02]} 58. Ke2 {[%emt 0:00:23]} g6 {[%emt 0:00:04]} 59. Kf3 {[%emt 0:00:30]} Ke6 {[%emt 0:00:47]} 60. Bb6 {[%emt 0:00:39]} Kd7 {[%emt 0:00:06]} 61. Ke2 {[%emt 0:00:25]} Kc8 {[%emt 0:00:02]} 62. Kf3 {[%emt 0:00:20]} Kb7 {[%emt 0:00:20]} 63. Bd8 {[%emt 0:00:15]} Ka6 {[%emt 0:00:01]} 64. Be7 {[%emt 0:00:29]} Kb5 {[%emt 0:00:02]} 65. Bf8 {[%emt 0:00:31]} Kc4 {[%emt 0:00:23]} 66. Be7 {[%emt 0:00:13]} Kc3 {[%emt 0:01:10]} 67. Bf8 {[%emt 0:00:32]} Kd2 {[%emt 0:00:17]} 68. Be7 {[%emt 0:00:14]} Ke1 {[%emt 0:00:18]} 69. Bf8 {[%emt 0:00:22]} Kf1 {[%emt 0:00:05]} 70. Be7 {[%emt 0:00:18]} Kg1 {[%emt 0:00:04]} 71. Bh4 {[%emt 0:01:10]} Kh2 {[%emt 0:00:07]} 72. Be7 {[%emt 0:01:30]} Nd2+ {[%emt 0:00:44]} 73. Ke2 {[%emt 0:00:16]} Kxg2 {[%emt 0:00:02]} 74. Kxd2 {[%emt 0:00:44]} Kf1 {[%emt 0:00:28]} 75. e4 {[%emt 0:00:36]} dxe4 {[%emt 0:00:25]} 76. Bc5 {[%emt 0:00:29]} g2 {[%emt 0:00:01]} 0-1

[Event "S. A. Group BAN-chT 2018"]
[Site "Dhaka"]
[Date "2018.12.07"]
[Round "2"]
[White "Zia, Tahsin Tajwar"]
[Black "Subhayan Kundu"]
[Result "0-1"]
[ECO "A04"]
[WhiteElo "1925"]
[BlackElo "2185"]
[Annotator "NA"]
[PlyCount "76"]
[EventDate "2018.12.07"]
[EventType "team-tourn"]
[EventCountry "BAN"]
[SourceTitle "playchess.com"]
[Source "ChessBase"]
[SourceQuality "1"]
[TimeControl "5400+30"]

1. Nf3 {[%emt 0:06:22]} c5 {[%emt 0:00:00]} 2. g3 {[%emt 0:00:30]} Nc6 {[%emt 0:00:36]} 3. Bg2 {[%emt 0:00:07]} g6 {[%emt 0:00:03]} 4. O-O {[%emt 0:00:08]} Bg7 {[%emt 0:00:03]} 5. d3 {[%emt 0:00:10]} d6 {[%emt 0:01:20]} 6. Nbd2 {[%emt 0:00:24]} e5 {[%emt 0:00:20]} 7. e4 {[%emt 0:00:29]} Nge7 {[%emt 0:00:14]} 8. c3 {[%emt 0:00:31]} O-O {[%emt 0:01:04]} 9. a3 {[%emt 0:04:51]} a5 {[%emt 0:12:13]} 10. a4 {[%emt 0:00:47]} h6 {[%emt 0:01:33]} 11. Nc4 {[%emt 0:04:51]} f5 {[%emt 0:08:56]} 12. h3 {[%emt 0:04:03]} Be6 {[%emt 0:12:30]} 13. Nfd2 {[%emt 0:23:20]} f4 {[%emt 0:17:57]} 14. g4 {[%emt 0:04:29]} g5 {[%emt 0:01:38]} 15. Na3 {[%emt 0:06:04]} Ng6 {[%emt 0:06:18]} 16. Nb5 {[%emt 0:03:26]} Rf7 {[%emt 0:05:52]} 17. f3 {[%emt 0:04:31]} d5 {[%emt 0:08:10]} 18. Qc2 {[%emt 0:12:47]} Nh4 {[%emt 0:02:46]} 19. exd5 Bxd5 {[%emt 0:00:00]} 20. Ne4 {[%emt 0:12:49]} Bf8 {[%emt 0:00:32]} 21. Na3 {[%emt 0:02:19]} Rd7 {[%emt 0:04:06]} 22. Nc4 {[%emt 0:00:54]} Be6 {[%emt 0:00:08]} 23. Nf2 {[%emt 0:05:26]} e4 {[%emt 0:02:03]} 24. Nxe4 {[%emt 0:01:44]} Rxd3 {[%emt 0:00:32]} 25. Nb6 {[%emt 0:00:54]} Qxb6 {[%emt 0:00:12]} 26. Qxd3 {[%emt 0:00:20]} c4+ {[%emt 0:00:06]} 27. Be3 {[%emt 0:00:09]} fxe3 {[%emt 0:02:45]} 28. Qe2 {[%emt 0:00:37]} Ng6 {[%emt 0:00:12]} 29. f4 {[%emt 0:00:48]} Nxf4 {[%emt 0:00:16]} 30. Rxf4 {[%emt 0:00:09]} gxf4 {[%emt 0:00:01]} 31. g5 {[%emt 0:00:55]} Ne5 {[%emt 0:01:22]} 32. Nf6+ {[%emt 0:00:21]} Kh8 {[%emt 0:00:24]} 33. Be4 {[%emt 0:00:43]} f3 {[%emt 0:00:19]} 34. Bxf3 {[%emt 0:00:29]} Bg7 {[%emt 0:01:45]} 35. Rf1 {[%emt 0:00:22]} Bxf6 {[%emt 0:00:13]} 36. gxf6 {[%emt 0:00:19]} Rg8+ {[%emt 0:00:06]} 37. Kh2 {[%emt 0:00:13]} Nxf3+ {[%emt 0:01:54]} 38. Rxf3 {[%emt 0:00:38]} Qd6+ {[%emt 0:00:10]} 0-1

[Event "S. A. Group BAN-chT 2018"]
[Site "Dhaka"]
[Date "2018.12.08"]
[Round "3"]
[White "Aronyak Ghosh"]
[Black "Mihir Lal, Das"]
[Result "1/2-1/2"]
[ECO "A16"]
[WhiteElo "2343"]
[BlackElo "2010"]
[Annotator "NA"]
[PlyCount "79"]
[EventDate "2018.12.07"]
[EventType "team-tourn"]
[EventCountry "BAN"]
[SourceTitle "playchess.com"]
[Source "ChessBase"]
[SourceQuality "1"]
[TimeControl "5400+30"]

1. c4 {[%emt 0:00:00]} Nf6 {[%emt 0:00:00]} 2. Nc3 {[%emt 0:00:00]} d5 {[%emt 0:00:15]} 3. cxd5 {[%emt 0:00:25]} Nxd5 {[%emt 0:00:11]} 4. g3 {[%emt 0:00:11]} g6 {[%emt 0:00:56]} 5. Bg2 {[%emt 0:00:07]} Nxc3 {[%emt 0:01:14]} 6. bxc3 {[%emt 0:00:06]} Bg7 {[%emt 0:00:18]} 7. Rb1 {[%emt 0:00:07]} c6 {[%emt 0:00:26]} 8. Nf3 {[%emt 0:00:55]} O-O {[%emt 0:00:26]} 9. O-O {[%emt 0:01:36]} b6 {[%emt 0:01:42] A16: English Opening: 1...Nf6 with ...d5} 10. c4 {[%emt 0:00:54]} Nd7 {[%emt 0:08:20]} 11. d3 {[%emt 0:00:11]} Bb7 {[%emt 0:01:18]} 12. Bb2 {[%emt 0:03:04]} c5 {[%emt 0:03:28]} 13. Bxg7 {[%emt 0:02:12]} Kxg7 {[%emt 0:00:02]} 14. a4 {[%emt 0:00:21]} Qc7 {[%emt 0:01:35] [#]} 15. Qd2 $146 {[%emt 0:01:23]} ({Predecessor:} 15. a5 Bc6 16. Qd2 bxa5 17. Nh4 Bxg2 18. Nxg2 a4 19. Ne3 {1-0 (54) Serper,G (2535)-Zugic,I (2335) North Bay 1998}) 15... Rab8 {[%emt 0:02:53]} 16. Rb2 {[%emt 0:04:35]} Bxf3 {[%emt 0:03:36]} 17. Bxf3 {[%emt 0:00:16]} Ne5 {[%emt 0:00:08]} 18. Bg2 {[%emt 0:02:15]} Nc6 {[%emt 0:00:05]} 19. Bxc6 {[%emt 0:00:20]} Qxc6 {[%emt 0:00:04]} 20. Ra1 {[%emt 0:00:04]} a6 {[%emt 0:14:44]} 21. Rb3 {[%emt 0:00:34]} Rb7 {[%emt 0:04:11]} 22. Qb2+ {[%emt 0:00:33]} f6 {[%emt 0:00:08]} 23. Rb1 {[%emt 0:03:00]} Rfb8 {[%emt 0:00:52]} 24. Qc3 $11 {[%emt 0:00:15]} h5 {[%emt 0:13:56]} 25. h4 {[%emt 0:00:09]} Qd7 {[%emt 0:00:41]} 26. Qa1 {[%emt 0:02:52]} Qc6 {[%emt 0:02:53]} 27. e4 {[%emt 0:08:45]} e5 {[%emt 0:06:39]} 28. Rf1 {[%emt 0:00:30]} Qd7 {[%emt 0:05:58]} 29. f4 {[%emt 0:04:02]} Qh3 {[%emt 0:04:16]} 30. Qe1 {[%emt 0:00:30]} b5 {[%emt 0:08:26]} 31. fxe5 {[%emt 0:02:40]} bxc4 {[%emt 0:05:31]} 32. Rxb7+ {[%emt 0:00:05]} Rxb7 {[%emt 0:00:03]} 33. exf6+ {[%emt 0:03:16]} Kf7 {[%emt 0:01:14]} 34. e5 {[%emt 0:03:10]} Rb2 {[%emt 0:01:13]} 35. e6+ {[%emt 0:00:04]} Kg8 {[%emt 0:00:28]} 36. f7+ {[%emt 0:00:39]} Kh7 {[%emt 0:00:11]} 37. Rf2 {[%emt 0:04:13]} Qxg3+ {[%emt 0:00:35]} 38. Kf1 {[%emt 0:00:01]} Qh3+ {[%emt 0:00:40]} 39. Kg1 {[%emt 0:00:02]} Qg3+ {[%emt 0:00:35]} 40. Kf1 {[%emt 0:00:02]} 1/2-1/2